Cogmind - Beta 12 @@@ ROGUE MODE // 2024.02.19 @ 04:09:47 Player: ToasterKoishi Result: Destroyed by G-47 Trooper with Particle Gun Performance ------------- Evolutions (0) 0 Regions Visited (4) 800 Robots Destroyed (24) 120 Value Destroyed (482) 482 Prototype IDs (0) 0 Alien Tech Used (0) 0 Bonus (0) 0 TOTAL SCORE: 1402 Bonus ------- None Cogmind --------- Core Integrity 0/250 Matter 299/300 Energy 100/100 System Corruption 6% Temperature Cool (9) Movement Treading (320) Ox2 Location -9/Mines Parts ------- > --- POWER (1) -------- (None) > --- PROPULSION (2) --- Light Treads Compact Wheel > --- UTILITY (2) ------ High-capacity Storage Unit Terrain Scanner > --- WEAPON (2) ------- (None) > --- INVENTORY (20) --- Light Ion Engine VTOL Module VTOL Module VTOL Module VTOL Module Medium Storage Unit Medium Storage Unit High-capacity Storage Unit High-capacity Matter Pod (200) Visual Processing Unit Sensor Array Improved Terrain Scanner Improved Terrain Scanner Peak State ------------ > --- POWER ------------ Light Ion Engine > --- PROPULSION ------- Light Treads Compact Wheel > --- UTILITY ---------- Large Storage Unit Terrain Scanner > --- WEAPON ----------- Particle Gun Particle Gun > --- INVENTORY -------- Light Ion Engine Light Treads Compact Wheel VTOL Module VTOL Module VTOL Module VTOL Module Medium Storage Unit Medium Storage Unit Large Storage Unit High-capacity Matter Pod Visual Processing Unit Sensor Array Improved Terrain Scanner Improved Terrain Scanner [Rating: 11] Favorites ----------- Power Light Ion Engine Engine Light Ion Engine Propulsion Light Treads Treads Light Treads Wheel Compact Wheel Utility Large Storage Unit Device Terrain Scanner Storage Large Storage Unit Weapon Small Laser Energy Gun Small Laser Ballistic Gun Light Assault Rifle Special Weapon Mining Laser Build | -11 -10 -10 -10 -9 ------- Run | Jun Mat Min Exi Min Slots Evolved . | . . . . . Power . | . . . . . Propulsion . | . . . . . Utility . | . . . . . Weapon . | . . . . . Parts Attached 34 | 7 16 2 8 1 Power 2 | 1 1 . . . Engine 2 | 1 1 . . . Core . | . . . . . Reactor . | . . . . . Propulsion 9 | 2 5 1 . 1 Treads 4 | 1 2 . . 1 Leg . | . . . . . Wheel 5 | 1 3 1 . . Hover . | . . . . . Flight . | . . . . . Utility 13 | 2 3 . 8 . Device 7 | 1 2 . 4 . Storage 6 | 1 1 . 4 . Processor . | . . . . . Hackware . | . . . . . Protection . | . . . . . Artifact . | . . . . . Weapon 10 | 2 7 1 . . Energy Gun 6 | 2 4 . . . Energy Cannon . | . . . . . Ballistic Gun 3 | . 3 . . . Ballistic Cannon . | . . . . . Launcher . | . . . . . Special Weapon 1 | . . 1 . . Impact Weapon . | . . . . . Slashing Weapon . | . . . . . Piercing Weapon . | . . . . . Special Melee Weapon . | . . . . . Unidentified Prototypes . | . . . . . Parts Lost 9 | . 5 1 . 3 Power 2 | . 1 . . 1 Propulsion 4 | . 2 1 . 1 Utility 1 | . 1 . . . Weapon 2 | . 1 . . 1 Highest Loss Streak 3 | . 3 1 . 3 To Critical Strikes . | . . . . . Average Slot Usage (%) 85 | . 83 95 84 62 Engine 10 | . 8 14 14 8 Treads 13 | . 13 14 14 10 Wheel 13 | . 13 13 14 14 Device 9 | . 6 14 13 14 Storage 14 | . 14 14 14 14 Energy Gun 12 | . 15 20 . . Ballistic Gun 5 | . 10 . . . Special Weapon 4 | . . 3 14 2 Naked Turns . | . . . . . Heaviest Build 45 | 14 30 30 45 45 Greatest Support 20 | 16 20 16 16 16 Greatest Overweight (x) 4 | 4 2 1 2 2 Average Overweight (x) . | . . 1 1 2 Largest Inventory Capacity 20 | 8 15 15 20 20 Average Capacity 12 | 7 10 15 15 20 Most Carried 15 | 8 15 15 15 14 Average Carried 10 | 3 8 14 13 13 Final Capacity 20 | 8 15 15 20 20 Final Carried 15 | 6 15 14 14 13 Class Distribution -------------------- 100% | Mutant Dominant Class ---------------- Mutant | -10/Materials Mutant | -10/Mines Mutant | -10/Exiles Mutant | -9/Mines Resources | -11 -10 -10 -10 -9 ----------- Run | Jun Mat Min Exi Min Matter Collected 748 | 270 205 74 199 . Remotely . | . . . . . Salvage Created 749 | 258 417 74 . . Parts 52 | 27 24 1 . . Haulers Intercepted . | . . . . . Recyclers Shooed 2 | 1 1 . . . Parts Field Recycled . | . . . . . Retrieved Matter . | . . . . . Parts Self-Destructed . | . . . . . Prevented . | . . . . . Kills | -11 -10 -10 -10 -9 ------- Run | Jun Mat Min Exi Min Combat Hostiles Destroyed 13 | . 11 2 . . Guns 13 | . 11 2 . . Classes Destroyed 6 | 3 3 . . . Worker 2 | 2 . . . . Tunneler 7 | 7 . . . . Recycler 1 | 1 . . . . Watcher 1 | . 1 . . . Swarmer 3 | . 3 . . . Grunt 10 | . 8 2 . . Best Kill Streak 6 | 6 4 2 . . Combat Bots Only 4 | . 4 2 . . Max Kills in Single Turn 1 | 1 1 1 . . Gunslinging . | . . . . . Exploded . | . . . . . Melee . | . . . . . Uniques/NPCs Destroyed . | . . . . . Combat | -11 -10 -10 -10 -9 -------- Run | Jun Mat Min Exi Min Damage Taken 1086 | . 515 131 . 440 Core 252 | . 76 23 . 153 Absorbed by Shields . | . . . . . Regen/Repaired (Parts) 3 | . 3 . . . Core Remaining (%) 100 | 100 . . . . Volleys Fired 82 | 28 47 7 . . Largest 2 | 2 2 2 . . Hottest 130 | 80 80 130 . . Shots Fired 128 | 38 76 14 . . Gun 128 | 38 76 14 . . Cannon . | . . . . . Launcher . | . . . . . Special . | . . . . . Kinetic 20 | . 20 . . . Thermal 98 | 28 56 14 . . Explosive . | . . . . . Electromagnetic 10 | 10 . . . . Robot Hit Streak 15 | 11 15 5 . . Robot Miss Streak 3 | 3 2 3 . . Penetration Max . | . . . . . Secondary Targets . | . . . . . Shots Hit Robots 93 | 28 55 10 . . Core Hits 43 | 11 27 4 . 1 Critical Kills . | . . . . . Critical Parts Destroyed . | . . . . . Critical Strikes 1 | 1 . . . . Corrupt 1 | 1 . . . . Melee Attacks . | . . . . . Impact . | . . . . . Slashing . | . . . . . Piercing . | . . . . . Sneak Attacks . | . . . . . Combat Hostiles . | . . . . . Follow-up Attacks . | . . . . . Damage Inflicted 1137 | 333 589 195 . 20 Guns 1117 | 333 589 195 . . Cannons . | . . . . . Explosions . | . . . . . Melee . | . . . . . Ramming 20 | . . . . 20 Kinetic 84 | . 84 . . . Thermal 910 | 210 505 195 . . Explosive . | . . . . . Electromagnetic 123 | 123 . . . . Impact . | . . . . . Slashing . | . . . . . Piercing . | . . . . . Highest Corruption 6 | . 6 6 6 6 Average Corruption 4 | . 2 6 6 6 Corruption Purged . | . . . . . Corruption Blocked . | . . . . . Effects 36 | . 11 7 15 3 Message Errors 9 | . 2 2 3 2 Matter Fused 9 | . 3 3 3 . Heat Flow Errors 3 | . . 1 2 . Energy Discharges 3 | . 2 . 1 . Data Loss (minor) 6 | . 1 . 5 . Data Loss (major) 3 | . 2 1 . . Misfires 1 | . 1 . . . Alerts 2 | . . . 1 1 Overload Shots . | . . . . . Overflow Damage . | . . . . . Projectiles . | . . . . . Explosions . | . . . . . Melee . | . . . . . Knockbacks . | . . . . . Impact . | . . . . . Kinetic . | . . . . . Secondary . | . . . . . Self-Inflicted Damage . | . . . . . Shots . | . . . . . Rammed 11 | . . . . 11 Targets Rammed 11 | . . . . 11 Kicked . | . . . . . Crushed . | . . . . . Highest Temperature 555 | 54 108 555 176 2 Average Temperature 101 | 23 33 261 78 2 Received Heat Transfer 564 | . 225 72 . 267 Effects 9 | . . 9 . . Shutdowns 1 | . . 1 . . Energy Bleed 1 | . . 1 . . Interference 3 | . . 3 . . Matter Decay 1 | . . 1 . . Short Circuit 2 | . . 2 . . Damage (minor) 1 | . . 1 . . Siege Activations . | . . . . . Robots Corrupted . | . . . . . Combat Hostiles . | . . . . . Parts Fried 1 | 1 . . . . Impact Corruptions . | . . . . . Robots Melted . | . . . . . Combat Hostiles . | . . . . . Parts Melted 3 | . . 3 . . Heat Transferred 2069 | 475 1150 444 . . Parts Sabotaged . | . . . . . Parts Stolen . | . . . . . Parts Stripped . | . . . . . Power Chain Reactions . | . . . . . Missiles Intercepted . | . . . . . Alert | -11 -10 -10 -10 -9 ------- Run | Jun Mat Min Exi Min Peak Influence 239 | 50 239 51 . 15 Initial 32 | . 32 11 . . Average 79 | 23 111 48 . 2 Maximum Alert Level 1 | . 1 . . . Low Security (%) 97 | 100 96 100 . 100 Level 1 2 | . 3 . . . Level 2 . | . . . . . Level 3 . | . . . . . Level 4 . | . . . . . Level 5 . | . . . . . High Security . | . . . . . Max Security . | . . . . . Squads Dispatched 4 | . 4 . . . Investigation 1 | . 1 . . . Extermination . | . . . . . Reinforcement 3 | . 3 . . . Assault . | . . . . . Garrison . | . . . . . Intercept . | . . . . . Searches Triggered . | . . . . . Construction Impeded . | . . . . . Haulers Reinforced . | . . . . . Active Scanning Responses . | . . . . . Cargo Convoy Interrupts . | . . . . . Stealth | -11 -10 -10 -10 -9 --------- Run | Jun Mat Min Exi Min Distress Signals 1 | . 1 . . . Communications Jammed . | . . . . . Distress Signals . | . . . . . Times Spotted 26 | . 22 2 . 2 Peak Tracking Total 5 | . 5 2 . 2 Tactical Retreats 1 | . 1 . . . Traps | -11 -10 -10 -10 -9 ------- Run | Jun Mat Min Exi Min Traps Triggered 6 | . 6 . . . Indirectly . | . . . . . Trap Hack Attempts . | . . . . . Triggered . | . . . . . Disarmed . | . . . . . Reprogrammed . | . . . . . Reused . | . . . . . Traps Extracted . | . . . . . Installed . | . . . . . Triggered . | . . . . . Machines | -11 -10 -10 -10 -9 ---------- Run | Jun Mat Min Exi Min Machines Disabled . | . . . . . Max in Single Turn . | . . . . . Machines Repaired . | . . . . . Machines Sabotaged . | . . . . . Overloaded Fab Kills . | . . . . . Hacking | -11 -10 -10 -10 -9 --------- Run | Jun Mat Min Exi Min Machines Accessed 7 | . 6 . 1 . Terminals 5 | . 5 . . . Fabricators . | . . . . . Repair Stations 1 | . 1 . . . Recycling Units . | . . . . . Scanalyzers . | . . . . . Garrison Access . | . . . . . Total Hacks 36 | . 13 . 23 . Successful 31 | . 8 . 23 . Failed 5 | . 5 . . . Catastrophic . | . . . . . Database Lockouts . | . . . . . Manual 1 | . 1 . . . Terminals 11 | . 11 . . . Fabricators . | . . . . . Repair Stations 2 | . 2 . . . Recycling Units . | . . . . . Scanalyzers . | . . . . . Garrison Access . | . . . . . Terminal Hacks 29 | . 6 . 23 . Record 23 | . . . 23 . Robot Analysis 1 | . 1 . . . Locate Traps 3 | . 3 . . . Registered Components 1 | . 1 . . . Zone Layout 1 | . 1 . . . Fabricator Hacks . | . . . . . Repair Station Hacks 2 | . 2 . . . Scan Component 1 | . 1 . . . Repair 1 | . 1 . . . Recycling Unit Hacks . | . . . . . Scanalyzer . | . . . . . Garrison Access Hacks . | . . . . . Unauthorized Hacks . | . . . . . Terminals . | . . . . . Fabricators . | . . . . . Repair Stations . | . . . . . Recycling Units . | . . . . . Scanalyzers . | . . . . . Garrison Access . | . . . . . Data Cores Recovered . | . . . . . Used . | . . . . . Hacking Detections 4 | . 4 . . . Full Trace Events . | . . . . . Feedback Events . | . . . . . Feedback Blocked . | . . . . . Robot Schematics Acquired . | . . . . . Robots Built . | . . . . . Authchips . | . . . . . Time . | . . . . . Total Robot Build Rating . | . . . . . Part Schematics Acquired . | . . . . . Parts Built . | . . . . . Authchips . | . . . . . Time . | . . . . . Total Part Build Rating . | . . . . . Parts Repaired 1 | . 1 . . . Time 38 | . 38 . . . Parts Recycled . | . . . . . Recycled Matter . | . . . . . Retrieved Matter . | . . . . . Retrieved Components . | . . . . . Parts Scanalyzed . | . . . . . Part Schematics Acquired . | . . . . . Parts Damaged . | . . . . . Bothacking | -11 -10 -10 -10 -9 ------------ Run | Jun Mat Min Exi Min Used RIF Installer . | . . . . . Robots Hacked . | . . . . . Non-combat . | . . . . . Combat . | . . . . . Robot Hacks Applied . | . . . . . Relay Couplers Released . | . . . . . Fabnet Peak Effective % . | . . . . . Robots Rewired . | . . . . . Allies Hacked . | . . . . . Hacks Repelled . | . . . . . Allies | -11 -10 -10 -10 -9 -------- Run | Jun Mat Min Exi Min Total Allies 1 | . . 1 . . Largest Group 1 | . . 1 1 . Highest-Rated Group 31 | . . 31 31 . Highest-Rated Ally 31 | . . 31 31 . Total Orders . | . . . . . Ally Attacks . | . . . . . Total Damage . | . . . . . Kills . | . . . . . Allies Corrupted . | . . . . . Allies Melted . | . . . . . Intel | -11 -10 -10 -10 -9 ------- Run | Jun Mat Min Exi Min Robot Analysis Total 1 | . 1 . . . Derelict Logs Recovered 3 | . . 3 . . Drone Launches . | . . . . . Drone Recoveries . | . . . . . Exploration | -11 -10 -10 -10 -9 ------------- Run | Jun Mat Min Exi Min Turns Passed 2284 | 282 1021 406 506 69 Spaces Moved 1725 | 186 783 327 411 18 Core 18 | 12 6 . . . Treads 1 | . 1 . . . Legs . | . . . . . Wheels 1706 | 174 776 327 411 18 Hover . | . . . . . Flight . | . . . . . Fastest Speed 50 | 50 80 115 115 130 Average Speed 107 | 106 99 115 115 130 Slowest Speed 250 | 250 160 115 130 130 Overloaded Moves . | . . . . . Propulsion Burnouts . | . . . . . Robots Hopped . | . . . . . Cave-ins Triggered . | . . . . . Exploration Rate (%) 52 | 8 99 77 67 12 Regions Visited 4 Branch Regions 3 Pre-discovered Areas 2 | . . 1 1 . Known Exits Taken . | . . . . . Unknown Exits Taken 4 | 1 1 1 1 . Scrap Searched . | . . . . . Spaces Dug . | . . . . . Terrain Destroyed . | . . . . . Melee . | . . . . . Projectile . | . . . . . AOE . | . . . . . Terrain Rammed . | . . . . . Walls Destroyed . | . . . . . Machines Disabled . | . . . . . Actions | -11 -10 -10 -10 -9 --------- Run | Jun Mat Min Exi Min Total 2000 | 230 951 343 446 30 Wait 85 | . 79 6 . . Move 1721 | 185 782 326 410 18 Hop . | . . . . . Pick Up 34 | 7 17 . 10 . Fast Attach 27 | 7 13 1 6 . Attach 5 | . 2 1 1 1 Detach 2 | 1 . . 1 . Swap 2 | . 1 . 1 . Drop 31 | 2 10 2 17 . Fire 82 | 28 47 7 . . Melee . | . . . . . Ram 3 | . . . . 3 Kick . | . . . . . Crush 8 | . . . . 8 Escape Stasis . | . . . . . Rewire . | . . . . . Trap . | . . . . . Miscellaneous . | . . . . . Route ------- -11/Junkyard -10/Materials (discovered 5 exits: [*Mat x3] / [*Min x2]) -10/Mines -10/Exiles (discovered 2 exits: [*Min x2]) -9/Mines History --------- Turn | Location | Event 42 | -11/Junkyard | Discovered new exit (range 15) 283 | -11/Junkyard | Entered Materials 313 | -10/Materials | Build established: Mutant 383 | -10/Materials | Repaired Imp. Terrain Scanner 407 | -10/Materials | Discovered new exit (range 6) 576 | -10/Materials | Discovered new exit (range 6) 682 | -10/Materials | Lost 3 parts (1p1n1w) 768 | -10/Materials | Discovered new exit (range 16) 936 | -10/Materials | Discovered new exit (range 16) 1155 | -10/Materials | Discovered new exit (range 10) 1304 | -10/Materials | Entered Mines 1341 | -10/Mines | Learned Materials terminal intel 1367 | -10/Mines | Learned location of Zion (-7) 1454 | -10/Mines | Learned Materials emergency access door positions 1606 | -10/Mines | Received a Mining Laser from a helpful Derelict 1705 | -10/Mines | Deemed a non-threat by the Exiles lab entrance 1705 | -10/Mines | Discovered new exit (range 5) 1710 | -10/Mines | Entered Exiles 1710 | -10/Exiles | Accompanied by 1 ally 1729 | -10/Exiles | Discovered new exit (range 15) 1745 | -10/Exiles | Met 8R-AWN 1762 | -10/Exiles | Met EX-HEX 1800 | -10/Exiles | Met EX-BIN 1815 | -10/Exiles | Met EX-DEC 1897 | -10/Exiles | Visited The Gauntlet 2143 | -10/Exiles | Discovered new exit (range 14) 2216 | -10/Exiles | Entered Mines 2256 | -9/Mines | Core integrity fell below 50% 2264 | -9/Mines | Core integrity fell below 20% 2282 | -9/Mines | Lost 3 parts (1p1n1w) 2285 | -9/Mines | Destroyed by G-47 Trooper with Particle Gun Last Messages --------------- 02222_ Mining Laser destroyed. 02230_ QVXJDF%VXF#KUH2>P0J&:OTD3EKWM 02240_ Slammed into G-34 Mercenary. 02245_ Lgt. Treads destroyed. 02246_ Slammed into G-34 Mercenary. 02251_ Lgt. Ion Engine destroyed. 02251_ G-34 Mercenary destroyed. 02254_ Slammed into G-47 Trooper. 02256_ YZ#NTVFB 8YE/9:W |EHKNZAX4 02261_ Slammed into G-47 Trooper. 02271_ T-07 Excavator is excavating. 02272_ Slammed into G-47 Trooper. 02275_ T-07 Excavator is excavating. 02275_ Slammed into G-47 Trooper. 02279_ System corrupted: IFF burst signal emitted. 02279_ T-07 Excavator is excavating. 02281_ Critical hit (Burn: +37). 02282_ Slammed into G-47 Trooper. 02284_ T-07 Excavator is excavating. 02285_ Slammed into G-47 Trooper. Map ----- +----------------------------------------------------+ | ????????????????????????????????????????????? | | ????????????????????????????????????????????? | | ????????????????????????????????????????????? | | ????????????????????????????????????????????? | | ????????????????????????????????????????????? | | ????????????????????????????????????????????? | | ????????????????????????????????????????????? | | ????????????????????????????????????????????? | | ????????????????????????????????????????????? | | ????????????????????????????????????????????? | | ????????????????????????????????????????????? | | ???????????????????????#????????????????????? | | ?????????????????????###############????????? | | ?????????????????????# #????????? | | ?????????????????????# """ #????????? | | ?????????????????????# """ #????????? | | ?????????????????????# """ ##???????? | | ?????????????????????# """ #???????#? | | ?????????????????????# #????????? | | ?????????????????????########### ####???????? | | ???????????????????????????????# #?#??#?????? | | ????????????????####?#?????????# #??#???????? | | ???????????????## #????#?????# #??????????? | | ??????????? ### #?##??#???# #?#????##??? | | ?????????? ######### ### #??? | | ?????????? @g #??? | | ?????????? t #??? | | ?????????? #### ####### #?????? | | ?????????? ### #?????????????? | | ??????????? % ##??????#?????? | | ??????????? #####?????????????? | | ????????????##### #????????????????#?? | | ????????????????## #??#????????????#?#?? | | ?????????????????## #?#?????##???????????? | | ??????????????????## #?????????????????#???? | | ???????????????????###??????????????????????? | | ???????????????????????????????????#????????? | | ????????????????????????????????????????????? | | | | | | | | | | | | | | | | | | | | | | | | | +----------------------------------------------------+ Best States ------------- Heat Dissipation 35 Energy Generation 10 Energy Capacity 250 Matter Stores 300 Matter Capacity 400 Sight Range 16 Terrain Scan Range 14 Terrain Scan Density 10 Evasion (%) 44 Recoil Reduction 1 Item Schematics ----------------- None Robot Schematics ------------------ None Fabricated ------------ Nothing Alien Tech Used ----------------- None Achievements -------------- None Challenges ------------ None Game ------ Seed ScanNeutrinoScanner Manual? 0 Play Time 00:16:04 Cumulative 32.2 hours Start 2024.02.19 @ 03:54:16 End 2024.02.19 @ 04:09:47 Sessions 1 Manual Loads 0 Difficulty Rogue Special Mode None Game No. 25 Rogue 25 Adventurer 0 Explorer 0 Win Type - Total 1 Types 1/0/0/0/0/0/0/0/0 Lore% 33 Gallery% 25 Achievement% 27 Wizard Run 0 Options --------- ASCII 0 Keyboard 0 Movement Mouse Keybinds 0 Fullscreen 2 Font 18/SmallcapsGlow Map View 112x50 Tactical HUD 1 Map Filters NONE Filters NONE Steam 1 RUN: 6a4cbe2a-d37c-43f4-b781-21a970c9c3e4